fUST/lending_fUST_20250525
["ID","MTS","AMOUNT","RATE_DAILY","PERIOD"]
[362310272,1748181038712,-478.04641096,0.00017686,2]
[362310275,1748181038732,-21.95358904,0.00017686,2]
[362310277,1748181038741,-500.0,0.00017686,2]
[362310279,1748181038750,-500.0,0.00017686,2]
[362310280,1748181038759,-500.0,0.00017686,2]
[362310281,1748181038770,-500.0,0.00017686,2]
[362310282,1748181038779,-500.0,0.00017686,2]
[362310283,1748181038789,-500.0,0.00017686,2]
[362310284,1748181038799,-500.0,0.00017686,2]
[362310285,1748181038808,-278.10463169,0.00017686,2]
[362310286,1748181038820,-221.89536831,0.00017686,2]
[362310287,1748181038829,-516.2771183,0.00017686,2]
[362310288,1748181038839,-79.74751589,0.00017686,2]
[362310835,1748181045085,-420.25248411,0.00017686,2]
[362310837,1748181045095,-500.0,0.00017686,2]
[362310839,1748181045106,-500.0,0.00017686,2]
[362310841,1748181045115,-500.0,0.00017686,2]
[362310843,1748181045125,-500.0,0.00017686,2]
[362310845,1748181045135,-500.0,0.00017686,2]
[362310847,1748181045145,-500.0,0.00017686,2]
[362310849,1748181045155,-647.36127046,0.00017686,2]
[362310851,1748181045164,-500.0,0.00017686,2]
[362310853,1748181045174,-500.0,0.00017686,2]
[362310855,1748181045183,-500.0,0.00017686,2]
[362310857,1748181045193,-500.0,0.00017686,2]
[362310859,1748181045203,-500.0,0.00017686,2]
[362310861,1748181045213,-500.0,0.00017686,2]
[362310863,1748181045223,-500.0,0.00017686,2]
[362310865,1748181045232,-257.68592914,0.00017686,2]
[362310867,1748181045243,-23420.13440668,0.00017687,3]
[362310869,1748181045252,-39607.26789982,0.00017687,2]
[362310870,1748181045265,-5086.74336785,0.00017687,2]
[362310977,1748181046792,-1781.94080849,0.00017687,2]
[362310978,1748181046850,-462.14600001,0.00017687,2]
[362310979,1748181046863,-48388.27236939,0.00017687,2]
[362310981,1748181124191,500.0,0.00024658,120]
[362310982,1748181134138,500.0,0.00024658,120]
[362310983,1748181141405,500.0,0.00024658,120]
[362310987,1748181200528,500.0,0.00024658,120]
[362310988,1748181217604,500.0,0.00024658,120]
[362310989,1748181228926,500.0,0.00024658,120]
[362310995,1748181285969,500.0,0.00024658,120]
[362310996,1748181304762,351.1375,0.00024658,120]
[362311034,1748181851471,701.000846,0.00013699,2]
[362311047,1748182079413,20163.39,0.0002135,30]
[362311092,1748182231812,-257.75282173,0.00015747,2]
[362311106,1748182231930,-4742.24717827,0.00015747,2]
[362311108,1748182231939,-300.0,0.00015905,2]
[362311110,1748182231949,-300.0,0.00015905,2]
[362311111,1748182231959,-300.0,0.00015905,2]
[362311114,1748182231970,-1200.0,0.00015905,2]
[362311115,1748182231980,-2587.54183758,0.00015906,2]
[362311600,1748182237878,-1824.17892368,0.00015906,2]
[362311602,1748182237891,-787.72633225,0.00015906,2]
[362311604,1748182237903,-813.06142564,0.00015906,2]
[362311607,1748182237915,-522.71292882,0.00015906,2]
[362311609,1748182237927,-1997.24574343,0.00015906,2]
[362311611,1748182237937,-500.0,0.00016519,2]
[362311613,1748182237947,-405.67632908,0.00016519,2]
[362311615,1748182237956,-152.22595241,0.00016587,2]
[362311617,1748182237966,-300.0,0.00016686,2]
[362311618,1748182237976,-221.36387853,0.00016687,2]
[362311619,1748182237986,-500.0,0.00016687,2]
[362311620,1748182237995,-500.0,0.00016687,2]
[362311621,1748182238004,-500.0,0.00016687,2]
[362311622,1748182238013,-156.3523317,0.00016687,2]
[362311623,1748182238022,-500.0,0.00016687,2]
[362311624,1748182238031,-269.84486432,0.00016687,2]
[362311625,1748182238040,-500.0,0.00016687,2]
[362311626,1748182238051,-500.0,0.00016687,2]
[362311627,1748182238060,-299.70426049,0.00016687,2]
[362311628,1748182238069,-500.0,0.00016687,2]
[362311629,1748182238079,-500.0,0.00016687,2]
[362311630,1748182238087,-500.0,0.00016687,2]
[362311631,1748182238096,-500.0,0.00016687,2]
[362311632,1748182238106,-500.0,0.00016687,2]
[362311633,1748182238115,-500.0,0.00016687,2]
[362311634,1748182238124,-500.0,0.00016687,2]
[362311635,1748182238133,-500.0,0.00016687,2]
[362311636,1748182238143,-500.0,0.00016687,2]
[362311637,1748182238152,-500.0,0.00016687,2]
[362311638,1748182238161,-500.0,0.00016687,2]
[362311640,1748182238171,-500.0,0.00016687,2]
[362311641,1748182238180,-500.0,0.00016687,2]
[362311643,1748182238190,-500.0,0.00016687,2]
[362311645,1748182238199,-500.0,0.00016687,2]
[362311647,1748182238213,-500.0,0.00016687,2]
[362311649,1748182238223,-500.0,0.00016687,2]
[362311651,1748182238233,-500.0,0.00016687,2]
[362311653,1748182238242,-500.0,0.00016687,2]
[362311655,1748182238252,-500.0,0.00016687,2]
[362311657,1748182238262,-173.48626747,0.00016687,2]
[362311659,1748182238271,-6137.71861314,0.00016688,2]
[362311662,1748182238288,-12813.3840853,0.00016688,2]
[362311680,1748182242948,-5000.0,0.00015747,2]
[362311681,1748182242958,-31249.1033529,0.00016688,2]
[362311691,1748182276962,935.5447477,0.0002191,30]
[362311696,1748182624752,-295.034733,0.00025881,120]
[362311697,1748182624782,-1503.89533161,0.00025881,120]
[362311698,1748182624807,-512.0,0.00025881,120]
[362311699,1748182624834,-834.07787039,0.00025881,120]
[362311700,1748182624858,-1561.63637835,0.00025881,120]
[362311701,1748182624885,-2612.61434938,0.00025881,60]
[362311702,1748182624912,-265.47075068,0.00025881,120]
[362311703,1748182624938,-543.23824461,0.00025881,120]
[362311704,1748182624963,-911.73156216,0.00025881,120]
[362311705,1748182624989,-2903.33304535,0.00025881,120]
[362311706,1748182625016,-840.96013682,0.00025881,120]
[362311707,1748182625044,-685.18734079,0.00025881,120]
[362311708,1748182625070,-240.82074905,0.00025881,120]
[362311709,1748182625099,-2160.47705966,0.00025881,120]
[362311710,1748182625124,-2000.0,0.00025881,120]
[362311711,1748182625150,-1095.62164653,0.00025881,120]
[362311712,1748182625176,-3232.45953326,0.00025881,120]
[362311713,1748182625203,-2589.33697313,0.00025881,120]
[362311714,1748182625230,-2478.31195802,0.00025881,120]
[362311715,1748182625255,-1002.93448939,0.00025881,120]
[362311716,1748182625282,-462.26051682,0.00025881,120]
[362311717,1748182625307,-1599.35739806,0.00025881,120]
[362311718,1748182625333,-3129.22924728,0.00025881,120]
[362311719,1748182625361,-197.07748782,0.00025881,120]
[362311720,1748182625387,-1214.49565797,0.00025881,120]
[362311721,1748182625414,-424.62593993,0.00025881,120]
[362311722,1748182625439,-2885.5847705,0.00025881,120]
[362311723,1748182625464,-214.92926347,0.00025881,120]
[362311724,1748182625494,-315.53450451,0.00025881,120]
[362311725,1748182625520,-202.83165994,0.00025881,120]
[362311726,1748182625549,-233.99518847,0.00025881,120]
[362311727,1748182625576,-1246.22606626,0.00025881,120]
[362311728,1748182625603,-531.9563417,0.00025881,120]
[362311729,1748182625629,-1728.7516368,0.00025881,120]
[362311730,1748182625655,-1166.35892821,0.00025881,120]
[362311731,1748182625683,-218.3909998,0.00025881,120]
[362311732,1748182625709,-730.72020027,0.00025881,120]
[362311733,1748182625737,-2961.82130265,0.00025881,120]
[362311734,1748182625764,-7635.343304,0.00025881,120]
[362311735,1748182625792,-4197.73548925,0.00025881,120]
[362311736,1748182625819,-7079.67428899,0.00025881,60]
[362311737,1748182625847,-4764.65257356,0.00025881,60]
[362311738,1748182625873,-2544.51775844,0.00025881,120]
[362311739,1748182625899,-1000.0,0.00025881,120]
[362311740,1748182625925,-1000.0,0.00025881,120]
[362311741,1748182625952,-500.0,0.00025881,120]
[362311742,1748182625979,-995.0,0.00025881,120]
[362311743,1748182626005,-150.0,0.00025881,90]
[362311744,1748182626034,-2990.0,0.00025881,120]
[362311745,1748182626061,-6303.94369806,0.00025881,120]
[362311746,1748182626088,-272.8,0.00025881,120]
[362311747,1748182626114,-1936.83767433,0.00025881,120]
[362311748,1748182626139,-1170.0,0.00025881,120]
[362311749,1748182626164,-938.86288542,0.00025881,120]
[362311750,1748182626191,-15158.17042424,0.00025881,120]
[362311751,1748182626220,-4128.00200996,0.00025881,120]
[362311752,1748182680303,310.727413,0.00020923,30]
[362311753,1748182680637,310.727413,0.00020624,30]
[362311754,1748182680672,158.875448,0.00020069,30]
[362311755,1748182680932,310.727413,0.00020325,30]
[362311756,1748182680997,158.875448,0.00018887,30]
[362311757,1748182681232,310.727413,0.00020025,30]
[362311758,1748182681608,310.727413,0.00019726,30]
[362311759,1748182803187,405.0,0.00024658,120]
[362311763,1748182923858,500.0,0.00021917,30]
[362311764,1748182924103,500.0,0.00021917,30]
[362311765,1748182924377,500.0,0.00021917,30]
[362311766,1748182924652,500.0,0.00021917,30]
[362311767,1748182924845,500.0,0.00021917,30]
[362311768,1748182925088,500.0,0.00021917,30]
[362311769,1748182925353,500.0,0.00021917,30]
[362311770,1748182925607,500.0,0.00021917,30]
[362311771,1748182926112,500.0,0.00021917,30]
[362311772,1748182926552,500.0,0.00021917,30]
[362311773,1748182926624,500.0,0.00021917,30]
[362311774,1748182927092,500.0,0.00021917,30]
[362311775,1748182927318,500.0,0.00021917,30]
[362311776,1748182927554,500.0,0.00021917,30]
[362311777,1748182927814,500.0,0.00021917,30]
[362311778,1748182928077,500.0,0.00021917,30]
[362311779,1748182928319,500.0,0.00021917,30]
[362311780,1748182928559,500.0,0.00021917,30]
[362311781,1748182928810,210.99384558,0.00021917,30]
[362311782,1748182951357,200.0,0.00024183,120]
[362311783,1748182965125,2588.3,0.00021917,30]
[362311785,1748182992522,4200.0,0.00024657,120]
[362311787,1748183003945,518.1635342,0.00024657,120]
[362311788,1748183010571,200.0,0.00024422,120]
[362311790,1748183130809,200.0,0.00024537,120]
[362311794,1748183169296,380.0,0.0002455,120]
[362311796,1748183183396,369.76601737,0.0002456,120]
[362311806,1748183247853,665.950803,0.00013699,2]
[362311811,1748183314310,1988.26825497,0.000246,120]
[362311813,1748183342523,158.875448,0.00020602,30]
[362311815,1748183401165,264.715847,0.00021479,30]
[362311816,1748183401658,264.715847,0.00021041,30]
[362311817,1748183401966,264.715847,0.00020602,30]
[362311818,1748183402326,264.715847,0.00020164,30]
[362311819,1748183402710,264.715847,0.00019726,30]
[362311821,1748183421940,156.58,0.000141,2]
[362311865,1748183432229,-516.913369,0.00014695,2]
[362312136,1748183440262,-4483.086631,0.00014695,2]
[362312137,1748183440272,-496.1027155,0.00014993,2]
[362312171,1748183445250,-5000.0,0.00014843,2]
[362312173,1748183445261,-196.2497795,0.00014993,2]
[362312175,1748183445270,-300.0,0.00015408,2]
[362312176,1748183445280,-300.0,0.00015408,2]
[362312177,1748183445290,-4896.2573393,0.00015409,2]
[362312178,1748183445299,-250.0,0.00015409,2]
[362312179,1748183445308,-189.14765,0.00015429,2]
[362312180,1748183445317,-150.74,0.00015472,2]
[362312181,1748183445327,-939.78808214,0.00016,2]
[362312182,1748183445336,-208.88337136,0.00016,2]
[362312183,1748183445346,-1073.17142076,0.00016091,2]
[362312184,1748183445355,-180.89,0.00016091,2]
[362312185,1748183445365,-156.72075247,0.0001618,2]
[362312186,1748183445374,-500.0,0.0001618,2]
[362312187,1748183445384,-500.0,0.0001618,2]
[362312188,1748183445393,-500.0,0.0001618,2]
[362312189,1748183445403,-500.0,0.0001618,2]
[362312190,1748183445414,-500.0,0.0001618,2]
[362312191,1748183445423,-500.0,0.0001618,2]
[362312192,1748183445433,-500.0,0.0001618,2]
[362312193,1748183445445,-429.18779231,0.0001618,2]
[362312194,1748183445455,-500.0,0.0001618,2]
[362312195,1748183445465,-500.0,0.0001618,2]
[362312196,1748183445475,-569.88438803,0.0001618,2]
[362312197,1748183445485,-494.85424143,0.0001618,2]
[362312198,1748183445496,-34297.2410085,0.00016181,2]
[362312199,1748183445505,-613.41316248,0.00016203,2]
[362312200,1748183445515,-1524.8276013,0.000167,2]
[362312201,1748183445526,-1524.82760102,0.000167,2]
[362312202,1748183445537,-1524.82760102,0.000167,2]
[362312203,1748183445549,-211.04,0.0001671,2]
[362312204,1748183445560,-1524.82760102,0.00016831,2]
[362312205,1748183445571,-420.0,0.00016856,2]
[362312206,1748183445582,-363.8823352,0.00016986,2]
[362312207,1748183445594,-363.8823352,0.00016986,2]
[362312208,1748183445609,-363.8823352,0.00017,2]
[362312209,1748183445619,-363.8823352,0.00017041,2]
[362312210,1748183445630,-849.6874112,0.00017041,2]
[362312211,1748183445642,-1524.82760102,0.00017141,2]
[362312212,1748183445654,-363.8823352,0.000172,2]
[362312213,1748183445663,-241.19,0.00017329,2]
[362312214,1748183445675,-1524.82760102,0.00017452,2]
[362312215,1748183445684,-10349.26428392,0.000176,2]
[362312217,1748183445697,-520.465,0.000176,2]
[362312236,1748183446293,-19101.25140575,0.000176,2]
[362312237,1748183446304,-212.55626673,0.00017688,3]
[362312238,1748183446314,-12652.24558203,0.00017688,3]
[362312239,1748183446324,-1524.82760102,0.00017762,2]
[362312240,1748183446334,-642.869983,0.00017885,2]
[362312241,1748183446343,-271.34,0.00017948,2]
[362312242,1748183446353,-707.0,0.00017962,2]
[362312243,1748183446363,-404.0,0.00017962,2]
[362312244,1748183446372,-2209.0,0.00017962,2]
[362312246,1748183446382,-158.875448,0.00018027,2]
[362312247,1748183446392,-153.0,0.00018027,2]
[362312248,1748183446402,-153.0,0.00018027,2]
[362312249,1748183446411,-1524.82760102,0.00018072,2]
[362312250,1748183446421,-571.6513513,0.00018082,2]
[362312251,1748183446430,-176.2038764,0.00018082,2]
[362312252,1748183446440,-153.0,0.00018082,2]
[362312253,1748183446449,-158.2750078,0.00018082,2]
[362312254,1748183446458,-176.2038764,0.00018082,2]
[362312255,1748183446467,-571.6513513,0.00018082,2]
[362312256,1748183446477,-153.0,0.00018082,2]
[362312257,1748183446487,-158.2750078,0.00018082,2]
[362312258,1748183446496,-158.2750078,0.00018082,2]
[362312259,1748183446506,-175.9305471,0.00018082,2]
[362312260,1748183446515,-571.6513513,0.00018082,2]
[362312261,1748183446525,-158.2750078,0.00018082,2]
[362312262,1748183446534,-565.5718793,0.00018082,2]
[362312263,1748183446543,-157.9451243,0.00018082,2]
[362312264,1748183446553,-160.0,0.00018202,2]
[362312265,1748183446563,-12652.24558203,0.00018208,2]
[362312266,1748183446572,-894.64583333,0.00018208,2]
[362312267,1748183446582,-160.0,0.00018208,2]
[362312268,1748183446591,-423.00916439,0.00018208,2]
[362312269,1748183446602,-229.13142565,0.00018208,2]
[362312270,1748183446612,-212.55626673,0.00018208,2]
[362312271,1748183446621,-160.0,0.00018208,2]
[362312272,1748183446631,-160.0,0.00018208,2]
[362312273,1748183446640,-160.0,0.00018208,2]
[362312274,1748183446650,-160.0,0.00018208,2]
[362312275,1748183446659,-1524.82760102,0.00018383,2]
[362312276,1748183446669,-587.0,0.0001844,2]
[362312277,1748183446680,-1300.0,0.000185,2]
[362312278,1748183446689,-158.875448,0.00018533,3]
[362312279,1748183446698,-301.49,0.00018567,2]
[362312280,1748183446708,-1524.82760102,0.00018693,2]
[362312281,1748183446717,-207.4,0.00018739,2]
[362312282,1748183446727,-264.715847,0.00018794,2]
[362312283,1748183446737,-395.235,0.00018999,2]
[362312284,1748183446746,-1524.82760102,0.00019003,2]
[362312285,1748183446756,-500.0,0.00019166,2]
[362312286,1748183446765,-500.0,0.00019166,2]
[362312287,1748183446775,-407.13068133,0.00019166,2]
[362312288,1748183446785,-500.0,0.00019166,2]
[362312289,1748183446794,-500.0,0.00019166,2]
[362312290,1748183446804,-196.73224222,0.00019166,2]
[362312291,1748183446813,-500.0,0.00019166,2]
[362312292,1748183446823,-500.0,0.00019166,2]
[362312293,1748183446837,-500.0,0.00019166,2]
[362312294,1748183446847,-500.0,0.00019166,2]
[362312295,1748183446857,-58513.44185475,0.00019167,2]
[362312296,1748183446866,-151.0,0.00019167,2]
[362312297,1748183446876,-160.0,0.0001917,2]
[362312298,1748183446886,-151.0,0.00019172,2]
[362312299,1748183446895,-500.0,0.00019173,2]
[362312300,1748183446905,-500.0,0.00019173,2]
[362312301,1748183446915,-1000.0,0.00019174,2]
[362312302,1748183446924,-11274.69897922,0.00019178,3]
[362312316,1748183704751,185.301093,0.00021917,30]
[362312317,1748183705060,185.301093,0.00021917,30]
[362312318,1748183776426,800.0,0.00024,120]
[362312319,1748183803450,1079.0,0.00024,120]
[362312512,1748183912231,1001.92501011,0.00024568,120]
[362312554,1748183945536,166.770984,0.00021917,30]
[362312555,1748183945825,166.770984,0.00021917,30]
[362312615,1748184284227,1006.0,0.00024657,120]
[362312616,1748184310259,647.061344,0.00013699,2]
[362312649,1748184632231,-5000.0,0.0001752,2]
[362312651,1748184632241,-300.0,0.00017989,2]
[362312653,1748184632250,-300.0,0.00017989,2]
[362312655,1748184632259,-1200.0,0.00017989,2]
[362312657,1748184632268,-7219.1101422,0.0001799,2]
[362312659,1748184632277,-183.4496969,0.00018056,2]
[362312661,1748184632287,-404.0,0.0001826,2]
[362312663,1748184632296,-158.875448,0.00018533,3]
[362312665,1748184632305,-160.0,0.00018598,2]
[362312667,1748184632314,-578.582985,0.0001879,2]
[362312668,1748184632324,-170.15705502,0.00018877,2]
[362312670,1748184632333,-965.72414739,0.000189,2]
[362312672,1748184632342,-207.4,0.00018968,2]
[362312674,1748184632351,-160.0,0.00018976,2]
[362312676,1748184632361,-894.64583333,0.00018976,2]
[362312677,1748184632371,-12652.24558203,0.00018976,2]
[362312679,1748184632381,-160.0,0.00018976,2]
[362312681,1748184632390,-229.13142565,0.00018976,2]
[362312683,1748184632401,-423.00916439,0.00018976,2]
[362312685,1748184632411,-160.0,0.00018976,2]
[362312687,1748184632420,-160.0,0.00018976,2]
[362312689,1748184632430,-160.0,0.00018977,2]
[362312691,1748184632439,-212.55626673,0.00018977,2]
[362312692,1748184632449,-160.0,0.00019003,2]
[362312694,1748184632459,-5000.0,0.00019073,2]
[362312696,1748184632468,-958.33621077,0.00019107,2]
[362312699,1748184632489,-7.38793654,0.00019107,2]
[362312701,1748184632499,-214.35419915,0.00019165,2]
[362312703,1748184632509,-500.0,0.00019165,2]
[362312705,1748184632518,-174.95618569,0.00019165,2]
[362312706,1748184632527,-316.188,0.00019166,2]
[362312708,1748184632536,-500.0,0.00019173,2]
[362312710,1748184632546,-500.0,0.00019177,2]
[362312712,1748184632556,-500.0,0.00019177,2]
[362312714,1748184632565,-337.71256955,0.00019177,2]
[362312716,1748184632575,-500.0,0.00019177,2]
[362312718,1748184632585,-500.0,0.00019177,2]
[362312720,1748184632595,-500.0,0.00019177,2]
[362312722,1748184632605,-384.99147693,0.00019177,2]
[362312724,1748184632614,-7818.74599187,0.00019178,3]
[362312919,1748184638133,-5000.0,0.0001785,2]
[362312920,1748184638143,-377.1205741,0.00018031,2]
[362312921,1748184638154,-4833.49959016,0.00019178,3]
[362312922,1748184638165,-894.64583333,0.00019178,3]
[362312923,1748184638177,-18342.24498033,0.00019178,2]
[362312924,1748184638188,-536.9764501,0.00019178,2]
[362312938,1748184644993,-848.43559847,0.00019178,2]
[362312982,1748185412908,628.395951,0.00013699,2]
[362313066,1748185832663,-855.4,0.00015898,2]
[362313075,1748185832735,-269.74104952,0.00015898,2]
[362313156,1748185839941,-3874.85895048,0.00015898,2]
[362313158,1748185839951,-161.91822144,0.00016551,2]
[362313160,1748185839961,-207.4,0.00017697,2]
[362313162,1748185839971,-200.63546826,0.00017776,2]
[362313164,1748185839980,-876.59143792,0.000179,2]
[362313166,1748185839992,-287.2685756,0.000179,2]
[362313168,1748185840002,-165.389979,0.00017933,2]
[362313170,1748185840012,-1134.0,0.0001814,2]
[362313172,1748185840022,-1163.86001333,0.00018141,2]
[362313174,1748185840032,-300.0,0.00018382,2]
[362313176,1748185840041,-300.0,0.00018382,2]
[362313178,1748185840051,-1163.86001333,0.00018383,2]
[362313180,1748185840060,-1163.86001333,0.00018624,2]
[362313183,1748185840070,-160.0,0.00018704,2]
[362313185,1748185840080,-894.64583333,0.00018704,2]
[362313188,1748185840090,-9411.92374556,0.00018704,2]
[362313190,1748185840103,-3240.32183647,0.00018704,2]
[362313192,1748185840113,-160.0,0.00018704,2]
[362313194,1748185840123,-229.13142565,0.00018704,2]
[362313196,1748185840132,-423.00916439,0.00018704,2]
[362313198,1748185840142,-160.0,0.00018704,2]
[362313200,1748185840153,-212.55626673,0.00018705,2]
[362313202,1748185840162,-160.0,0.00018705,2]
[362313204,1748185840172,-160.0,0.00018705,2]
[362313206,1748185840182,-435.68743876,0.00018794,2]
[362313209,1748185840198,-205.28927324,0.00018794,2]
[362313211,1748185840207,-559.71072676,0.00018866,2]
[362313864,1748185846541,-5000.0,0.00018677,2]
[362313865,1748185846551,-604.14928657,0.00018866,2]
[362313866,1748185846561,-830.5309762,0.000189,2]
[362313867,1748185846571,-600.0,0.00018937,2]
[362313868,1748185846581,-624.52179193,0.00018977,2]
[362313869,1748185846590,-172.58301585,0.00018999,2]
[362313870,1748185846599,-2743.42375102,0.00019,2]
[362313871,1748185846609,-200.8025362,0.00019066,2]
[362313873,1748185846620,-14.2712638,0.00019066,2]
[362313875,1748185846630,-306.89621976,0.00019077,2]
[362313877,1748185846640,-306.89621976,0.00019078,2]
[362313879,1748185846650,-183.95042679,0.00019078,2]
[362313881,1748185846660,-306.89621976,0.00019078,2]
[362313883,1748185846670,-1163.86001333,0.00019107,2]
[362313885,1748185846679,-603.21829411,0.00019134,2]
[362313887,1748185846690,-500.0,0.00019173,2]
[362313889,1748185846699,-500.0,0.00019173,2]
[362313891,1748185846709,-502.37133137,0.00019173,2]
[362313893,1748185846718,-500.0,0.00019173,2]
[362313895,1748185846728,-500.0,0.00019173,2]
[362313897,1748185846737,-502.50564121,0.00019173,2]
[362313898,1748185846747,-500.0,0.00019177,2]
[362313899,1748185846759,-586.39879869,0.00019177,2]
[362313902,1748185846770,-500.0,0.00019177,2]
[362313904,1748185846782,-500.0,0.00019177,2]
[362313906,1748185846792,-169.49403385,0.00019177,2]
[362313907,1748185846802,-160.0,0.00019177,2]
[362313909,1748185846812,-252.95,0.00019177,2]
[362313911,1748185846821,-12652.24558203,0.00019177,3]
[362313913,1748185846832,-894.64583333,0.00019177,3]
[362313915,1748185846842,-13199.31375427,0.00019178,3]
[362313917,1748185846852,-82292.92112127,0.00019178,2]
[362313919,1748185846861,-430.0,0.00019178,2]
[362313921,1748185846871,-430.0,0.00019178,2]
[362313922,1748185846881,-430.0,0.00019178,2]
[362313923,1748185846890,-560.01884127,0.00019178,2]
[362313924,1748185846901,-400.0,0.00019178,2]
[362313925,1748185846910,-430.0,0.00019178,2]
[362313926,1748185846920,-430.0,0.00019178,2]
[362313927,1748185846929,-430.0,0.00019178,2]
[362313928,1748185846941,-430.0,0.00019178,2]
[362313929,1748185846951,-430.0,0.00019178,2]
[362313930,1748185846960,-471.5420223,0.00019178,2]
[362313931,1748185846971,-430.0,0.00019178,2]
[362313932,1748185846981,-214.45790829,0.00019178,2]
[362313934,1748185846991,-430.0,0.00019178,2]
[362313936,1748185847001,-430.0,0.00019178,2]
[362313937,1748185847011,-430.0,0.00019178,2]
[362313939,1748185847021,-450.0,0.00019178,2]
[362313941,1748185847030,-430.0,0.00019178,2]
[362313943,1748185847040,-430.0,0.00019178,2]
[362313945,1748185847050,-430.0,0.00019178,2]
[362313947,1748185847060,-430.0,0.00019178,2]
[362313949,1748185847070,-470.0,0.00019178,2]
[362313951,1748185847079,-195.04558982,0.00019178,2]
[362313953,1748185847089,-430.0,0.00019178,2]
[362313955,1748185847098,-190.68133678,0.00019178,2]
[362313957,1748185847108,-430.0,0.00019178,2]
[362313959,1748185847120,-430.0,0.00019178,2]
[362313961,1748185847129,-314.28314713,0.00019178,2]
[362313963,1748185847139,-430.0,0.00019178,2]
[362313965,1748185847149,-430.0,0.00019178,2]
[362313967,1748185847158,-529.54462458,0.00019178,2]
[362313989,1748185847350,-400.0,0.00019178,2]
[362313991,1748185847360,-198.23031536,0.00019178,2]
[362313993,1748185847371,-430.0,0.00019178,2]
[362313995,1748185847382,-400.0,0.00019178,2]
[362313997,1748185847392,-430.0,0.00019178,2]
[362313999,1748185847401,-340.0,0.00019178,2]
[362314001,1748185847410,-400.0,0.00019178,2]
[362314003,1748185847421,-430.0,0.00019178,2]
[362314005,1748185847431,-430.0,0.00019178,2]
[362314007,1748185847440,-430.0,0.00019178,2]
[362314009,1748185847451,-430.0,0.00019178,2]
[362314011,1748185847461,-430.0,0.00019178,2]
[362314013,1748185847471,-430.0,0.00019178,2]
[362314015,1748185847481,-300.60506843,0.00019178,2]
[362314017,1748185847491,-400.0,0.00019178,2]
[362314019,1748185847501,-430.0,0.00019178,2]
[362314021,1748185847511,-400.0,0.00019178,2]
[362314023,1748185847521,-430.0,0.00019178,2]
[362314025,1748185847531,-400.0,0.00019178,2]
[362314027,1748185847540,-430.0,0.00019178,2]
[362314029,1748185847549,-430.0,0.00019178,2]
[362314031,1748185847559,-400.0,0.00019178,2]
[362314033,1748185847568,-430.0,0.00019178,2]
[362314035,1748185847579,-430.0,0.00019178,2]
[362314037,1748185847588,-400.0,0.00019178,2]
[362314039,1748185847598,-400.0,0.00019178,2]
[362314041,1748185847608,-430.0,0.00019178,2]
[362314043,1748185847618,-430.0,0.00019178,2]
[362314045,1748185847627,-430.0,0.00019178,2]
[362314047,1748185847637,-430.0,0.00019178,2]
[362314049,1748185847648,-430.0,0.00019178,2]
[362314051,1748185847658,-430.0,0.00019178,2]
[362314053,1748185847668,-440.87903886,0.00019178,2]
[362314055,1748185847678,-501.66015232,0.00019178,2]
[362314057,1748185847687,-430.0,0.00019178,2]
[362314059,1748185847697,-900.05,0.00019178,2]
[362314061,1748185847707,-430.0,0.00019178,2]
[362314063,1748185847716,-791.15,0.00019178,2]
[362314065,1748185847725,-430.0,0.00019178,2]
[362314067,1748185847735,-330.80611492,0.00019178,2]
[362314069,1748185847744,-430.0,0.00019178,2]